bitfinex-derivatives/quotes_SOLF0:USTF0_20250625
["timestamp","ask_amount","ask_price","bid_price","bid_amount"]
[1750832124619,4.30996898,145.66,145.65,6.8622]
[1750832125015,12.44033958,145.68,145.65,6.8622]
[1750832125215,4.30993247,145.67,145.65,6.8622]
[1750832125412,12.44033958,145.68,145.65,6.8622]
[1750832125616,4.30993241,145.67,145.65,6.8622]
[1750832125814,12.44033958,145.68,145.65,6.8622]
[1750832126020,11.17123241,145.67,145.64,6.8623]
[1750832126220,11.03011782,145.67,145.64,6.8623]
[1750832126818,6.8613,145.67,145.64,6.8623]
[1750832127026,13.10532738,145.66,145.55,12.79984287]
[1750832127323,3.39663871,145.62,145.54,16.19648158]
[1750832127517,10.26033871,145.62,145.58,6.8652]
[1750832127917,14.42937606,145.62,145.58,6.8652]
[1750832128221,10.26033871,145.62,145.58,6.8652]
[1750832128422,6.8642,145.61,145.58,6.8652]
[1750832130424,3.39663871,145.6,145.53,42.5089]
[1750832131525,10.26123871,145.6,145.57,6.8656]
[1750832133127,11.16037885,145.59,145.56,6.8663]
[1750832133423,6.8651,145.59,145.56,6.8663]
[1750832133628,10.26243871,145.58,145.55,6.8669]
[1750832134428,10.26173871,145.59,145.53,42.5089]
[1750832135228,10.26173871,145.59,145.55,6.8666]
[1750832135833,10.26173871,145.59,145.56,6.8661]
[1750832136032,3.39663871,145.59,145.53,42.5089]
[1750832136629,10.26173871,145.59,145.53,42.5089]
[1750832137536,6.8655,145.58,145.53,42.5089]
[1750832137727,3.39663871,145.59,145.53,42.5089]
[1750832138228,10.26203871,145.59,145.53,42.5089]
[1750832138830,14.54767817,145.59,145.53,42.5089]
[1750832139034,10.26203871,145.59,145.53,42.5089]
[1750832139235,6.8655,145.58,145.55,6.8666]
[1750832139437,3.39663871,145.59,145.53,42.5089]
[1750832139628,3.39663871,145.57,145.53,7.0689]
[1750832139824,3.39663871,145.57,145.54,6.8671]
[1750832139825,10.26293871,145.57,145.54,6.8671]
[1750832140029,10.26293871,145.57,145.5,51.25648158]
[1750832140030,38.45663871,145.57,145.5,35.06]
[1750832140323,3.39663871,145.55,145.5,35.06]
[1750832140534,10.26363871,145.55,145.52,6.868]
[1750832140735,3.39663871,145.55,145.5,35.06]
[1750832141341,3.39663871,145.55,145.53,6.8676]
[1750832144947,3.39663871,145.55,145.54,6.8674]
[1750832146146,3.39663871,145.55,145.53,6.8676]
[1750832151659,10.26353871,145.55,145.53,6.8676]
[1750832153554,6.8669,145.55,145.53,6.8676]
[1750832153755,38.45663871,145.57,145.5,35.06]
[1750832154460,6.867,145.55,145.52,6.8679]
[1750832154861,38.45663871,145.57,145.5,35.06]
[1750832155362,3.39663871,145.55,145.52,6.8681]
[1750832156566,10.26363871,145.55,145.52,6.8681]
[1750832157966,6.8674,145.54,145.51,6.8686]
[1750832160467,6.8674,145.54,145.52,6.8683]
[1750832161468,10.26373871,145.55,145.52,6.8683]
[1750832162066,38.45663871,145.61,145.52,3.39663871]
[1750832162269,3.39663871,145.61,145.52,3.39663871]
[1750832162475,35.06,145.62,145.54,3.39663871]
[1750832162768,35.06,145.62,145.55,6.8454]
[1750832162961,35.06,145.62,145.58,6.8651]
[1750832162962,41.924,145.62,145.58,6.8651]
[1750832163161,3.39663871,145.61,145.55,6.8454]
[1750832164067,10.26073871,145.61,145.55,6.8454]
[1750832164866,10.26073871,145.61,145.58,6.8652]
[1750832165567,35.06,145.62,145.52,137.09663871]
[1750832165568,3.39663871,145.59,145.52,137.09663871]
[1750832166162,10.26203871,145.59,145.52,137.09663871]
[1750832166867,10.26203871,145.59,145.56,6.8664]
[1750832167071,3.39663871,145.59,145.52,137.09663871]
[1750832167566,3.39663871,145.61,145.54,3.39663871]
[1750832168062,3.39663871,145.61,145.58,6.8651]
[1750832168871,10.26073871,145.61,145.58,6.8651]
[1750832169866,3.39663871,145.61,145.58,6.8651]
[1750832170056,7.66723782,145.61,145.58,6.8651]
[1750832170458,3.39663871,145.61,145.58,6.8651]
[1750832172179,10.26073871,145.61,145.58,6.8651]
[1750832172470,3.39663871,145.61,145.59,6.865]
[1750832175068,10.26073871,145.61,145.58,6.8653]
[1750832175662,3.39663871,145.61,145.59,6.865]
[1750832175862,3.39663871,145.61,145.52,146.49984287]
[1750832176072,10.26073871,145.61,145.58,6.8652]
[1750832177370,6.8646,145.6,145.57,6.8658]
[1750832177569,3.39663871,145.59,145.52,137.09663871]
[1750832178482,3.39663871,145.59,145.52,3.39663871]
[1750832178483,10.26193871,145.59,145.52,3.39663871]
[1750832178678,3.39663871,145.59,145.52,3.39663871]
[1750832178875,7.66762391,145.59,145.51,39.6453]
[1750832179073,3.39663871,145.59,145.51,39.6453]
[1750832179777,10.26193871,145.59,145.55,6.8664]
[1750832180076,3.39663871,145.59,145.55,6.8664]
[1750832180280,35.02,145.58,145.55,6.8664]
[1750832180979,41.8858,145.58,145.55,6.8664]
[1750832181381,35.02,145.58,145.56,6.8663]
[1750832181575,35.02,145.58,145.52,3.39663871]
[1750832182078,35.02,145.58,145.56,6.866]
[1750832182676,35.02,145.58,145.52,3.39663871]
[1750832183269,35.02,145.58,145.57,6.866]
[1750832184280,35.02,145.58,145.56,6.8662]
[1750832188883,35.02,145.58,145.57,6.866]
[1750832202391,37.1937278,145.58,145.57,6.866]
[1750832205000,44.05947513,145.58,145.52,14.973718]
[1750832205297,44.05947513,145.58,145.51,4.5853]
[1750832205298,2.17387513,145.54,145.51,4.5853]
[1750832205592,2.17387513,145.53,145.5,2.2215]
[1750832205796,2.17387513,145.53,145.52,6.8683]
[1750832206096,2.17499868,145.53,145.52,6.8683]
[1750832208287,10.26545542,145.55,145.52,6.8683]
[1750832214994,34.86,145.54,145.52,6.8683]
[1750832215196,50.29,145.54,145.52,6.8683]
[1750832215395,57.1574,145.54,145.52,6.8683]
[1750832215591,57.1574,145.54,145.48,34.84]
[1750832215796,50.29,145.54,145.48,34.84]
[1750832216498,57.1575,145.54,145.51,6.8686]
[1750832217193,10.26635542,145.53,145.5,6.8691]
[1750832217596,3.39845542,145.53,145.5,6.8691]
[1750832217997,10.26655542,145.53,145.5,6.8691]
[1750832218196,10.26655542,145.53,145.51,6.8687]
[1750832219904,3.39845542,145.53,145.51,6.8687]
[1750832220593,10.26635542,145.53,145.51,6.8687]
[1750832220789,10.26635542,145.53,145.5,6.8691]
[1750832221394,10.26635542,145.53,145.51,6.8688]
[1750832221597,3.39845542,145.53,145.51,6.8688]
[1750832222399,10.26635542,145.53,145.5,6.8691]
[1750832222796,3.39845542,145.53,145.46,37.1006]
[1750832222990,3.39845542,145.51,145.46,2.2406]
[1750832224302,4.24433173,145.53,145.46,2.2406]
[1750832224505,3.39845542,145.51,145.46,2.2406]
[1750832225406,3.39845542,145.51,145.49,6.8695]
[1750832225890,3.39845542,145.51,145.46,2.2406]
[1750832226296,3.39845542,145.53,145.46,5.63905542]
[1750832226496,53.68845542,145.54,145.46,5.63905542]
[1750832226704,60.55585542,145.54,145.51,6.8684]
[1750832228902,60.55585542,145.54,145.52,6.8683]
[1750832229203,53.68845542,145.54,145.52,6.8683]
[1750832230300,15.43,145.54,145.53,6.8679]
[1750832234104,5.0468,145.54,145.53,6.8679]
[1750832234409,628.22,145.59,145.57,6.8657]
[1750832235207,53.7856,145.62,145.54,3.39845542]
[1750832235513,14.44,145.62,145.58,3.39845542]
[1750832235705,3.9145,145.62,145.61,6.8641]
[1750832235904,631.61845542,145.68,145.6,3.39845542]
[1750832236302,3.39845542,145.66,145.59,37.0671]
[1750832237306,3.39845542,145.66,145.63,6.863]
[1750832237809,3.39845542,145.66,145.59,37.0671]
[1750832238218,8.93,145.65,145.59,37.0671]
[1750832238618,11.87,145.64,145.63,6.8628]
[1750832239612,11.87,145.64,145.62,6.8635]
[1750832240214,11.87,145.64,145.63,6.8631]
[1750832244921,11.87,145.64,145.62,6.8635]
[1750832245121,11.87,145.64,145.59,37.0671]
[1750832245726,3.39845542,145.63,145.58,2.1958]
[1750832245921,3.39845542,145.63,145.56,40.62145542]
[1750832246228,10.26185542,145.63,145.59,6.8646]
[1750832247226,6.8637,145.62,145.59,6.8646]
[1750832247425,3.39845542,145.61,145.59,6.8646]
[1750832247725,6.8635,145.63,145.55,3.39845542]
[1750832247920,3.39845542,145.62,145.55,3.39845542]
[1750832248724,52.37035542,145.64,145.55,3.39845542]
[1750832248921,3.39845542,145.62,145.53,4.5653]
[1750832249227,52.37035542,145.64,145.57,3.39845542]
[1750832249429,52.37035542,145.64,145.61,6.8638]
[1750832249822,59.23305542,145.64,145.61,6.8638]
[1750832252435,50.08845542,145.64,145.62,6.8635]
[1750832252722,50.08845542,145.64,145.57,3.39845542]
[1750832253030,56.95115542,145.64,145.6,6.8642]
[1750832254132,56.95115542,145.64,145.57,3.39845542]
[1750832254428,50.08845542,145.64,145.54,62.0]
[1750832254633,3.39845542,145.6,145.53,42.76375542]
[1750832256331,3.39845542,145.6,145.58,6.8652]
[1750832258431,12.31845542,145.6,145.58,6.8652]
[1750832259633,19.18335542,145.6,145.57,6.8659]
[1750832259827,47.47845542,145.6,145.53,42.76375542]
[1750832260031,3.39845542,145.58,145.53,39.3653]
[1750832260226,6.8662,145.57,145.54,6.8671]
[1750832260638,3.39845542,145.56,145.5,35.16]
[1750832260842,38.55845542,145.56,145.5,35.16]
[1750832261134,45.42525542,145.56,145.53,6.8676]
[1750832263530,6.8662,145.57,145.5,35.16]
[1750832264027,6.8662,145.57,145.54,6.8671]
[1750832268337,6.8665,145.56,145.54,6.8671]
[1750832268534,10.26495542,145.56,145.53,6.8677]
[1750832270042,10.26495542,145.56,145.54,6.8674]
[1750832270340,3.39845542,145.56,145.54,6.8674]
[1750832271641,6.8662,145.57,145.55,6.8669]
[1750832272143,6.8662,145.57,145.54,6.8672]
[1750832272740,35.16,145.58,145.52,3.39845542]
[1750832272939,38.55845542,145.58,145.5,47.02343132]
[1750832273649,38.55845542,145.58,145.5,38.55845542]
[1750832274242,45.42425542,145.58,145.55,6.8668]
[1750832275638,35.16,145.58,145.52,3.39845542]
[1750832275839,12.31845542,145.6,145.52,11.86343132]
[1750832276033,12.31845542,145.6,145.57,6.8659]
[1750832276238,19.18325542,145.6,145.57,6.8659]
[1750832276532,3.39845542,145.6,145.52,3.39845542]
[1750832278143,46.46395224,145.61,145.52,3.39845542]
[1750832278350,35.16,145.61,145.54,3.39845542]
[1750832278741,35.16,145.61,145.58,6.8652]
[1750832279450,8.92,145.6,145.58,6.8652]
[1750832280152,15.7847,145.6,145.58,6.8652]
[1750832280452,8.92,145.6,145.59,6.865]
[1750832280955,8.92,145.6,145.58,6.8653]
[1750832282245,8.92,145.6,145.59,6.865]
[1750832285547,8.92,145.6,145.58,6.8653]
[1750832288553,15.7847,145.6,145.57,6.8657]
[1750832290054,10.26355542,145.59,145.56,6.8662]
[1750832290259,14.52999791,145.59,145.56,6.8662]
[1750832290762,6.8657,145.58,145.53,4.6451]
[1750832291155,6.8657,145.58,145.53,13.1100759]
[1750832292059,7.66623197,145.59,145.56,6.8663]
[1750832292060,14.53143197,145.59,145.56,6.8663]
[1750832292760,6.8657,145.58,145.55,6.8668]
[1750832293861,11.13381036,145.58,145.55,6.8668]
[1750832294250,8.92,145.6,145.52,8.4649759]
[1750832294251,8.92,145.6,145.54,8.4649759]
[1750832295054,8.92,145.6,145.54,12.9808759]
[1750832295255,8.92,145.6,145.58,6.8653]
[1750832295653,8.92,145.6,145.54,12.9808759]
[1750832296055,12.31845542,145.6,145.54,12.9808759]
[1750832296463,4.27268642,145.59,145.52,8.4649759]
[1750832296666,6.8653,145.59,145.53,8.4649759]
[1750832296864,6.8653,145.59,145.52,8.4649759]
[1750832297065,6.8653,145.59,145.53,8.4649759]
[1750832297866,6.8653,145.59,145.56,6.8662]
[1750832298067,10.26315542,145.6,145.56,6.8662]
[1750832298256,39.39399757,145.59,145.56,6.8662]
[1750832298458,35.12,145.59,145.54,8.4649759]
[1750832299364,8.91,145.58,145.54,8.4649759]
[1750832299666,8.91,145.58,145.57,6.866]
[1750832302465,22.11225542,145.62,145.55,8.4649759]
[1750832302466,46.97,145.62,145.61,6.8641]
[1750832302663,51.24402248,145.62,145.61,6.8641]
[1750832303662,46.97,145.62,145.61,6.8641]
[1750832303865,51.24402248,145.62,145.61,6.8641]
[1750832304166,54.6424779,145.62,145.56,15.6079759]
[1750832304368,3.39845542,145.6,145.53,8.4649759]
[1750832304569,7.6718483,145.6,145.58,6.8652]
[1750832304773,4.27339288,145.61,145.55,8.4649759]
[1750832304972,46.97,145.62,145.56,11.86343132]
[1750832305171,46.97,145.62,145.6,6.8642]
[1750832305366,51.2425148,145.62,145.6,6.8642]
[1750832305966,58.1064148,145.62,145.59,6.8649]
[1750832306167,50.36845542,145.62,145.55,8.4649759]
[1750832306470,6.8644,145.61,145.58,6.8654]
[1750832307683,6.8646,145.6,145.57,6.8658]
[1750832307979,6.8646,145.6,145.55,8.4649759]
[1750832308186,50.36845542,145.62,145.55,8.4649759]
[1750832308675,11.85,145.62,145.58,3.39845542]
[1750832309077,11.85,145.62,145.61,6.8641]
[1750832309865,11.85,145.62,145.57,8.4649759]
[1750832310574,4.28082638,145.63,145.61,6.8641]
[1750832310777,38.51845542,145.64,145.61,6.8641]
[1750832310980,4.28010898,145.63,145.61,6.8641]
[1750832311783,11.14330898,145.63,145.61,6.8641]
[1750832311985,6.8632,145.63,145.61,6.8641]
[1750832312181,11.14360137,145.63,145.61,6.8641]
[1750832313182,45.38135542,145.64,145.61,6.8641]
[1750832313776,4.28341351,145.65,145.64,6.8626]
[1750832314586,4.28341351,145.65,145.63,6.8628]
[1750832314787,41.9817,145.66,145.63,6.8628]
[1750832314979,4.28289351,145.65,145.63,6.8628]
[1750832315179,4.28289351,145.65,145.58,8.4649759]
[1750832315180,4.28294561,145.64,145.56,54.13103132]
[1750832315381,4.28290803,145.64,145.58,3.39845542]
[1750832315688,11.14580803,145.64,145.61,6.8637]
[1750832315881,3.39845542,145.65,145.58,3.39845542]
[1750832316088,4.28291278,145.64,145.57,8.4649759]
[1750832316287,6.8635,145.63,145.6,6.8644]
[1750832316490,4.2829066,145.64,145.57,8.4649759]
[1750832316686,3.39845542,145.65,145.57,8.4649759]
[1750832316881,11.14664651,145.64,145.61,6.8638]
[1750832317082,6.8629,145.64,145.61,6.8638]
[1750832317791,6.8632,145.63,145.6,6.8644]
[1750832318094,10.26165542,145.63,145.6,6.8644]
[1750832318395,4.28332707,145.63,145.61,6.8638]
[1750832318599,10.26135542,145.64,145.61,6.8638]
[1750832319095,4.28330795,145.65,145.6,3.39845542]
[1750832319287,631.95845542,145.68,145.6,3.39845542]
[1750832319489,4.28188229,145.67,145.6,3.39845542]
[1750832319681,4.28188229,145.66,145.6,3.39845542]
[1750832319880,4.28188229,145.67,145.6,3.39845542]
[1750832320085,4.28286268,145.67,145.66,6.8614]
[1750832320689,4.28286261,145.67,145.66,6.8614]
[1750832324696,640.84,145.68,145.66,6.8614]
[1750832327208,647.7009,145.68,145.65,6.862]
[1750832327501,4.26921029,145.67,145.65,6.862]
[1750832327905,647.7009,145.68,145.65,6.862]
[1750832328103,4.26888387,145.67,145.65,6.862]
[1750832328495,651.09935542,145.68,145.65,6.862]
[1750832328702,6.8613,145.67,145.65,6.862]
[1750832329212,651.09945542,145.68,145.65,6.862]
[1750832329806,4.26815773,145.67,145.6,38.55845542]
[1750832330202,3.39845542,145.66,145.58,11.86343132]
[1750832330403,10.26125542,145.64,145.61,6.8636]
[1750832330702,45.42125542,145.64,145.61,6.8636]
[1750832332306,45.42125542,145.64,145.62,6.8635]
[1750832332614,38.55845542,145.64,145.62,6.8635]
[1750832332801,35.16,145.64,145.62,6.8635]
[1750832342117,42.0227,145.64,145.62,6.8635]
[1750832342311,42.82095687,145.64,145.57,35.16]
[1750832342507,38.55845542,145.64,145.57,35.16]
[1750832342812,42.82006267,145.64,145.62,6.8634]
[1750832344218,49.68276267,145.64,145.62,6.8634]
[1750832344820,49.68276267,145.64,145.61,6.8639]
[1750832345207,45.42115542,145.64,145.61,6.8639]
[1750832345410,49.68407873,145.64,145.61,6.8639]
[1750832345621,45.42115542,145.64,145.61,6.8639]
[1750832345811,49.68443233,145.64,145.61,6.8639]
[1750832346010,45.42115542,145.64,145.61,6.8639]
[1750832347511,39.42407497,145.64,145.63,6.8631]
[1750832347713,35.16,145.64,145.63,6.8631]
[1750832347908,39.42407497,145.64,145.63,6.8631]
[1750832348118,35.16,145.64,145.63,6.8631]
[1750832349823,34.9,145.67,145.65,6.8618]
[1750832350012,34.9,145.67,145.6,11.86343132]
[1750832351122,4.26419109,145.67,145.62,3.39845542]
[1750832351327,12.28,145.68,145.62,3.39845542]
[1750832351627,12.28,145.68,145.67,6.8613]
[1750832351821,16.54502184,145.68,145.67,6.8613]
[1750832352126,12.28,145.68,145.67,6.8613]
[1750832359629,34.9,145.72,145.71,6.8594]
[1750832359832,34.9,145.72,145.68,3.39845542]
[1750832361016,34.9,145.72,145.7,6.8595]
[1750832366929,3.04,145.74,145.67,3.39845542]
[1750832367137,3.04,145.74,145.73,6.8584]
[1750832369124,3.04,145.74,145.73,10.25685542]
[1750832371240,41.7362,145.78,145.73,3.39845542]
[1750832372838,34.88,145.78,145.76,6.8569]
[1750832373832,41.7362,145.78,145.75,6.8573]
[1750832375430,41.7362,145.78,145.76,6.8569]
[1750832376040,34.88,145.78,145.76,6.8569]
[1750832376641,6.7312,145.81,145.73,3.39845542]
[1750832376843,6.7312,145.81,145.75,3.39845542]
[1750832376844,41.6112,145.81,145.75,3.39845542]
[1750832377238,48.4661,145.81,145.78,6.8558]
[1750832377438,41.7349,145.81,145.78,6.8558]
[1750832378326,41.7349,145.81,145.75,3.39845542]
[1750832378742,6.8552,145.8,145.75,3.39845542]
[1750832379238,34.88,145.81,145.75,3.39845542]
[1750832380041,41.7348,145.81,145.78,6.8558]
[1750832380738,6.8552,145.8,145.77,6.8564]
[1750832381243,41.7349,145.81,145.78,6.8559]
[1750832381836,6.8539,145.83,145.8,6.8551]
[1750832382538,6.8543,145.82,145.8,6.8551]
[1750832382934,34.86,145.84,145.8,6.8551]
[1750832383243,6.854,145.83,145.8,6.8551]
[1750832383538,38.25845542,145.84,145.8,6.8551]
[1750832383842,6.8538,145.83,145.8,6.8551]
[1750832384237,3.39845542,145.82,145.74,10.27495542]
[1750832384542,6.8549,145.81,145.74,10.27495542]
[1750832384735,6.8549,145.81,145.78,6.8556]
[1750832384936,3.39845542,145.82,145.74,10.27495542]
[1750832385330,10.25285542,145.82,145.79,6.8552]
[1750832385531,3.39845542,145.83,145.76,3.39845542]
[1750832385931,10.25245542,145.83,145.8,6.8548]
[1750832387143,6.8543,145.82,145.79,6.8554]
[1750832387544,6.8543,145.82,145.8,6.8551]
[1750832387945,3.39845542,145.83,145.8,6.8551]
[1750832387946,10.25245542,145.83,145.8,6.8551]
[1750832388941,45.11195542,145.84,145.76,3.39845542]
[1750832389741,45.11195542,145.84,145.81,6.8546]
[1750832392845,6.8538,145.83,145.81,6.8546]
[1750832396353,45.11195542,145.84,145.81,6.8546]
[1750832397649,6.8538,145.83,145.81,6.8546]
[1750832399355,6.8542,145.82,145.74,6.8765]
[1750832399561,6.8542,145.82,145.75,3.39845542]
[1750832399953,6.8542,145.82,145.79,6.8554]
[1750832400152,6.8542,145.82,145.75,3.39845542]
[1750832401156,6.8542,145.82,145.8,6.855]
[1750832401762,11.70834636,145.83,145.8,6.855]
[1750832402665,6.8544,145.82,145.79,6.8554]
[1750832403166,4.85755547,145.81,145.74,4.6015]
[1750832403367,4.85887098,145.81,145.74,4.6015]
[1750832403564,6.8549,145.81,145.78,6.856]
[1750832403967,11.71369529,145.81,145.78,6.856]
[1750832404168,15.11165071,145.82,145.75,3.39845542]
[1750832404369,4.85879529,145.83,145.77,3.39845542]
[1750832404569,38.25845542,145.84,145.77,3.39845542]
[1750832404871,4.85879529,145.83,145.77,3.39845542]
[1750832405067,34.86,145.84,145.77,3.39845542]
[1750832405262,41.7133,145.84,145.81,6.8543]
[1750832405460,46.57008699,145.84,145.81,6.8543]
[1750832406369,46.57008743,145.84,145.81,6.8543]
[1750832406768,41.7133,145.84,145.81,6.8543]
[1750832407167,41.7133,145.84,145.82,6.8541]
[1750832407864,41.7133,145.84,145.81,6.8545]
[1750832408070,11.71287684,145.83,145.81,6.8545]
[1750832408265,6.8537,145.83,145.81,6.8545]
[1750832408967,11.71291929,145.83,145.81,6.8545]
[1750832409165,4.85921929,145.83,145.77,38.23845542]
[1750832409560,6.8535,145.84,145.77,38.23845542]
[1750832409760,6.8535,145.84,145.81,6.8544]
[1750832409963,4.86299269,145.83,145.81,6.8544]
[1750832410362,11.18045368,145.84,145.81,6.8544]
[1750832410559,4.86295386,145.83,145.81,6.8544]
[1750832410770,11.18045368,145.84,145.81,6.8544]
[1750832410977,4.86737802,145.83,145.81,6.8544]
[1750832411271,6.8538,145.83,145.81,6.8544]
[1750832412364,11.18425958,145.84,145.82,6.8541]
[1750832412671,38.23845542,145.85,145.82,6.8541]
[1750832412970,11.72048443,145.84,145.82,6.8541]
[1750832413163,34.84,145.85,145.79,3.39845542]
[1750832413365,4.86704227,145.84,145.81,3.39845542]
[1750832413563,9.19787462,145.86,145.81,3.39845542]
[1750832413765,9.19921366,145.85,145.81,3.39845542]
[1750832413969,4.33083235,145.86,145.84,6.853]
[1750832414266,4.86838219,145.85,145.84,6.853]
[1750832414767,4.33102995,145.86,145.85,6.8528]
[1750832414966,4.86686385,145.86,145.85,6.8528]
[1750832415164,9.1978938,145.86,145.85,6.8528]
[1750832415370,4.86686385,145.87,145.86,6.8523]
[1750832415556,4.86686385,145.87,145.81,38.21845542]
[1750832416059,4.86686385,145.87,145.83,3.39845542]
[1750832416265,6.8503,145.91,145.85,3.39845542]
[1750832416667,11.17953134,145.91,145.85,3.39845542]
[1750832416866,4.32923134,145.9,145.88,6.8511]
[1750832417058,6.8503,145.91,145.88,6.8511]
[1750832417262,4.86674725,145.9,145.88,6.8511]
[1750832417966,4.86676601,145.9,145.85,3.39845542]
[1750832418162,4.86676601,145.91,145.85,3.39845542]
[1750832418470,4.86676601,145.9,145.83,3.39845542]
[1750832418671,9.20341578,145.89,145.83,3.39845542]
[1750832418871,4.86676601,145.88,145.83,3.39845542]
[1750832419073,11.71806601,145.89,145.85,6.8524]
[1750832419261,6.8513,145.89,145.85,6.8524]
[1750832419467,4.86682761,145.88,145.85,6.8524]
[1750832419768,6.8516,145.88,145.85,6.8524]
[1750832419969,11.71842761,145.88,145.85,6.8524]
[1750832420270,6.8516,145.88,145.85,6.8524]
[1750832420475,6.8519,145.87,145.84,6.853]
[1750832421469,11.7429693,145.87,145.84,6.853]
[1750832421667,6.8519,145.87,145.84,6.853]
[1750832422564,6.8523,145.86,145.84,6.853]
[1750832424167,41.6721,145.87,145.84,6.853]
[1750832424871,41.6721,145.87,145.84,6.8529]
[1750832425074,46.55225611,145.87,145.84,6.8529]
[1750832425475,41.6721,145.87,145.84,6.8529]
[1750832425667,39.70044584,145.87,145.81,38.21845542]
[1750832426071,34.82,145.87,145.81,38.21845542]
[1750832426471,34.82,145.87,145.85,6.8527]
[1750832426863,39.7004659,145.87,145.85,6.8527]
[1750832427462,39.7004659,145.87,145.86,6.8523]
[1750832427668,34.82,145.87,145.86,6.8523]
[1750832427974,34.82,145.87,145.83,3.39845542]
[1750832428474,6.8513,145.89,145.83,3.39845542]
[1750832429668,4.32834695,145.9,145.83,3.39845542]
[1750832429869,49.55875009,145.92,145.89,6.8506]
[1750832430176,9.20736536,145.91,145.89,6.8506]
[1750832430379,4.87903586,145.9,145.89,6.8506]
[1750832430980,4.87903586,145.91,145.89,6.8506]
[1750832431173,4.87903586,145.9,145.89,6.8506]
[1750832431371,4.87903586,145.91,145.9,6.8504]
[1750832432377,4.89900583,145.91,145.9,6.8504]
[1750832435083,4.89900583,145.91,145.89,6.8507]
[1750832435282,4.89805805,145.91,145.89,6.8507]
[1750832435882,4.89805805,145.91,145.9,6.8504]
[1750832437785,4.89805805,145.91,145.89,6.8507]
[1750832438177,4.89703718,145.91,145.89,6.8507]
[1750832440381,46.56663718,145.92,145.9,6.8504]
[1750832441285,39.71703718,145.92,145.9,6.8504]
[1750832442684,39.71703718,145.92,145.91,6.85]
[1750832443182,34.82,145.92,145.91,6.85]
[1750832443382,39.71703718,145.92,145.91,6.85]
[1750832443586,34.82,145.92,145.91,6.85]
[1750832444187,4.89537815,145.94,145.91,6.85]
[1750832444380,11.74397815,145.94,145.91,6.85]
[1750832444982,4.89537815,145.94,145.92,6.8494]
[1750832445780,45.98322963,145.95,145.92,6.8494]
[1750832445975,6.8486,145.94,145.91,6.8498]
[1750832446591,45.98312963,145.95,145.92,6.8494]
[1750832446788,39.13482963,145.95,145.89,3.39845542]
[1750832446990,4.91005209,145.94,145.89,3.39845542]
[1750832447378,11.75865209,145.94,145.91,6.8497]
[1750832448195,4.91005209,145.93,145.91,6.8497]
[1750832448395,6.8491,145.93,145.91,6.8497]
[1750832448592,4.91280926,145.92,145.9,6.8503]
[1750832449695,4.91280926,145.92,145.91,6.85]
[1750832450088,4.91275796,145.92,145.91,6.85]
[1750832450799,6.85,145.91,145.87,2.2048]
[1750832450995,6.85,145.91,145.86,42.84495542]
[1750832451796,6.8497,145.92,145.86,42.84495542]
[1750832452098,11.76817159,145.92,145.89,6.8506]
[1750832452297,6.8497,145.92,145.89,6.8506]
[1750832452498,11.76817159,145.92,145.89,6.8506]
[1750832452698,6.8497,145.92,145.89,6.8506]
[1750832453291,11.76809786,145.92,145.89,6.8506]
[1750832453599,6.85,145.91,145.89,6.8506]
[1750832454997,4.92111451,145.92,145.86,42.84495542]
[1750832455198,4.33696927,145.94,145.88,3.39845542]
[1750832455390,4.9208191,145.93,145.88,3.39845542]
[1750832455599,11.18576927,145.94,145.88,3.39845542]
[1750832455794,6.8488,145.94,145.88,3.39845542]
[1750832455994,4.92081773,145.93,145.88,3.39845542]
[1750832456195,4.92063716,145.92,145.91,6.8496]
[1750832458401,4.34390019,145.94,145.9,3.39845542]
[1750832458601,13.30641506,145.97,145.9,3.39845542]
[1750832458791,9.2651246,145.96,145.9,3.39845542]
[1750832458997,4.91872709,145.95,145.94,6.8486]
[1750832460295,39.14801709,145.98,145.92,3.39845542]
[1750832460501,34.8,145.98,145.92,3.39845542]
[1750832461102,38.19845542,146.01,145.92,3.39845542]
[1750832461301,4.92666588,146.0,145.92,3.39845542]
[1750832461496,4.92666588,145.99,145.97,6.8469]